[Event "75th ARM-ch Women 2020"]
[Site "Yerevan"]
[Date "2020.01.15"]
[Round "4.3"]
[White "Hakobyan, Astghik"]
[Black "Gaboyan, Susanna"]
[Result "1/2-1/2"]
[ECO "B33"]
[WhiteElo "1917"]
[BlackElo "2205"]
[Annotator "ChessBase"]
[PlyCount "149"]
[EventDate "2020.01.12"]
[EventType "tourn"]
[EventCountry "ARM"]
[SourceTitle "playchess.com"]
[Source "ChessBase"]
[SourceQuality "1"]
[TimeControl "40/5400+30:1800+30"]

1. e4 {[%emt 0:00:00]} c5 {[%emt 0:00:00]} 2. Nf3 {[%emt 0:00:00]} Nc6 {[%emt 0:00:00]} 3. d4 {[%emt 0:00:00]} cxd4 {[%emt 0:00:00]} 4. Nxd4 {[%emt 0:00:00]} Nf6 {[%emt 0:00:00]} 5. Nc3 {[%emt 0:00:01]} e5 {[%emt 0:00:00]} 6. Ndb5 {[%emt 0:00:06]} d6 {[%emt 0:00:01]} 7. Bg5 {[%emt 0:00:09]} a6 {[%emt 0:00:05]} 8. Na3 {[%emt 0:00:14]} b5 {[%emt 0:00:04]} 9. Nd5 {[%emt 0:00:07]} Be7 {[%emt 0:00:05]} 10. Bxf6 {[%emt 0:00:08]} Bxf6 {[%emt 0:00:05]} 11. c4 {[%emt 0:00:07]} Nd4 {[%emt 0:00:05]} 12. cxb5 {[%emt 0:00:10]} Bb7 {[%emt 0:00:06]} 13. Bc4 {[%emt 0:00:21]} axb5 {[%emt 0:00:08]} 14. Nxb5 {[%emt 0:01:05]} Bxd5 {[%emt 0:00:41]} 15. exd5 {[%emt 0:00:41]} Qa5+ {[%emt 0:00:17]} 16. Nc3 {[%emt 0:00:37]} Qb4 {[%emt 0:00:22]} 17. Bb3 {[%emt 0:06:48]} O-O {[%emt 0:00:21]} 18. O-O {[%emt 0:00:19]} Rfb8 {[%emt 0:00:07]} 19. Qd2 {[%emt 0:28:58]} g6 {[%emt 0:21:57]} 20. Ne4 {[%emt 0:15:56]} Be7 {[%emt 0:00:49]} 21. Qxb4 {[%emt 0:02:06]} Rxb4 {[%emt 0:00:03]} 22. Nd2 {[%emt 0:00:19]} Rc8 {[%emt 0:01:53]} 23. Rfd1 {[%emt 0:04:06]} Bg5 {[%emt 0:04:20]} 24. Nf3 {[%emt 0:03:17]} Nxb3 {[%emt 0:00:16]} 25. axb3 {[%emt 0:00:12]} Bh6 {[%emt 0:00:36]} 26. Nd2 {[%emt 0:05:16]} Bxd2 {[%emt 0:01:38]} 27. Rxd2 {[%emt 0:00:28]} Rxb3 {[%emt 0:00:02]} 28. Kf1 {[%emt 0:01:12]} Rb6 {[%emt 0:03:29]} 29. Ke2 {[%emt 0:05:44]} Rc5 {[%emt 0:00:24]} 30. Ra8+ {[%emt 0:07:51]} Kg7 {[%emt 0:00:10]} 31. Rd8 {[%emt 0:00:05]} Rcb5 {[%emt 0:02:26]} 32. Ke1 {[%emt 0:00:14]} Kf6 {[%emt 0:02:23]} 33. Rd7 {[%emt 0:00:55]} h5 {[%emt 0:06:19]} 34. h4 {[%emt 0:06:33]} e4 {[%emt 0:02:21]} 35. Re2 {[%emt 0:06:02]} Rxb2 {[%emt 0:08:25]} 36. Rxb2 {[%emt 0:03:55]} Rxb2 {[%emt 0:00:06]} 37. Rxd6+ {[%emt 0:00:06]} Ke5 {[%emt 0:02:58]} 38. Rd7 {[%emt 0:00:04]} f5 {[%emt 0:01:19]} 39. g3 {[%emt 0:03:02]} Rb5 {[%emt 0:02:54]} 40. Kf1 {[%emt 0:00:00]} Rxd5 {[%emt 0:00:00]} 41. Re7+ {[%emt 0:01:33]} Kf6 {[%emt 0:00:38]} 42. Ra7 {[%emt 0:00:10]} Rd6 {[%emt 0:00:49]} 43. Ra5 {[%emt 0:01:02]} g5 {[%emt 0:04:45]} 44. hxg5+ {[%emt 0:02:41]} Kxg5 {[%emt 0:00:07]} 45. Ra8 {[%emt 0:07:10]} Kg4 {[%emt 0:02:03]} 46. Kg2 {[%emt 0:00:06]} Rg6 {[%emt 0:00:13]} 47. Ra4 {[%emt 0:08:57]} Kg5 {[%emt 0:00:24]} 48. f3 {[%emt 0:05:12]} Re6 {[%emt 0:17:23]} 49. fxe4 {[%emt 0:00:13]} fxe4 {[%emt 0:00:05]} 50. Kf2 {[%emt 0:01:12]} Kg4 {[%emt 0:02:15]} 51. Ra5 {[%emt 0:01:13]} Rf6+ {[%emt 0:05:48]} 52. Ke3 Rf5 {[%emt 0:00:55]} 53. Ra8 {[%emt 0:04:37]} Re5 {[%emt 0:04:03]} 54. Rg8+ {[%emt 0:00:17]} Rg5 {[%emt 0:00:01]} 55. Ra8 {[%emt 0:02:03]} Kxg3 {[%emt 0:04:49]} 56. Kxe4 {[%emt 0:00:01]} h4 {[%emt 0:00:17]} 57. Ra3+ {[%emt 0:00:50]} Kg4 {[%emt 0:01:20]} 58. Ke3 {[%emt 0:00:54]} Kg3 {[%emt 0:04:41]} 59. Ke4+ {[%emt 0:00:54]} Kh2 {[%emt 0:00:05]} 60. Ra8 {[%emt 0:01:33]} Rg3 {[%emt 0:02:18]} 61. Kf4 {[%emt 0:00:45]} h3 {[%emt 0:00:43]} 62. Ra2+ {[%emt 0:00:38]} Rg2 {[%emt 0:00:13]} 63. Ra3 {[%emt 0:01:03]} Rg7 {[%emt 0:00:45]} 64. Ra2+ {[%emt 0:00:39]} Kh1 {[%emt 0:01:06]} 65. Kf3 {[%emt 0:00:23]} Rg2 {[%emt 0:04:28]} 66. Ra1+ {[%emt 0:00:19]} Kh2 {[%emt 0:00:08]} 67. Ra8 {[%emt 0:00:25]} Rb2 {[%emt 0:00:56]} 68. Ra7 {[%emt 0:00:40]} Rb3+ {[%emt 0:00:24]} 69. Kf2 {[%emt 0:00:15]} Rb6 {[%emt 0:00:12]} 70. Rf7 {[%emt 0:00:10]} Kh1 {[%emt 0:00:11]} 71. Rf3 {[%emt 0:00:48]} h2 {[%emt 0:00:26]} 72. Rf7 {[%emt 0:00:04]} Rb2+ {[%emt 0:02:05]} 73. Kf1 {[%emt 0:00:07]} Ra2 {[%emt 0:00:49]} 74. Rf6 {[%emt 0:00:08]} Rf2+ {[%emt 0:00:06]} 75. Kxf2 {[%emt 0:00:06]} 1/2-1/2

[Event "75th ARM-ch Women 2020"]
[Site "Yerevan"]
[Date "2020.01.15"]
[Round "4.4"]
[White "Arakelyan, Nare"]
[Black "Kursova, Maria"]
[Result "1-0"]
[ECO "B33"]
[WhiteElo "1913"]
[BlackElo "2241"]
[Annotator "ChessBase"]
[PlyCount "101"]
[EventDate "2020.01.12"]
[EventType "tourn"]
[EventCountry "ARM"]
[SourceTitle "playchess.com"]
[Source "ChessBase"]
[SourceQuality "1"]
[TimeControl "40/5400+30:1800+30"]

1. e4 {[%emt 0:00:00]} c5 {[%emt 0:00:00]} 2. Nf3 {[%emt 0:00:00]} Nc6 {[%emt 0:00:00]} 3. d4 {[%emt 0:00:00]} cxd4 {[%emt 0:00:00]} 4. Nxd4 {[%emt 0:00:00]} Nf6 {[%emt 0:00:10]} 5. Nc3 {[%emt 0:00:06]} e5 {[%emt 0:00:17]} 6. Ndb5 {[%emt 0:00:03]} d6 {[%emt 0:00:16]} 7. Bg5 {[%emt 0:00:37]} a6 {[%emt 0:00:36]} 8. Na3 {[%emt 0:01:58]} b5 {[%emt 0:00:16]} 9. Nd5 {[%emt 0:00:03]} Be7 {[%emt 0:00:33]} 10. Bxf6 {[%emt 0:00:12]} Bxf6 {[%emt 0:00:10]} 11. c3 {[%emt 0:00:01]} Rb8 {[%emt 0:03:07]} 12. Nc2 {[%emt 0:00:39]} Bg5 {[%emt 0:00:51]} 13. a4 {[%emt 0:01:11]} bxa4 {[%emt 0:08:10]} 14. Ncb4 {[%emt 0:02:34]} Nxb4 {[%emt 0:01:27]} 15. Nxb4 {[%emt 0:00:03]} Bb7 {[%emt 0:38:31]} 16. Qxa4+ {[%emt 0:01:19]} Kf8 {[%emt 0:00:11]} 17. Bd3 {[%emt 0:12:22]} g6 {[%emt 0:03:11]} 18. O-O {[%emt 0:00:23]} Kg7 {[%emt 0:00:19]} 19. Rfd1 {[%emt 0:00:47]} Qc7 {[%emt 0:16:21]} 20. f3 {[%emt 0:03:46]} Ra8 {[%emt 0:03:12]} 21. Qa5 {[%emt 0:11:43]} Be3+ {[%emt 0:03:01]} 22. Kh1 {[%emt 0:00:46]} Bb6 {[%emt 0:01:27]} 23. Qa2 {[%emt 0:00:12]} a5 {[%emt 0:05:55]} 24. Nc2 {[%emt 0:03:03]} Bc5 {[%emt 0:07:02]} 25. Bc4 {[%emt 0:00:23]} Rhb8 {[%emt 0:03:38]} 26. Bd5 {[%emt 0:02:15]} Ra7 {[%emt 0:00:42]} 27. Na3 {[%emt 0:02:19]} Bc8 {[%emt 0:01:20]} 28. Nc4 {[%emt 0:03:13]} a4 {[%emt 0:00:58]} 29. Qb1 {[%emt 0:00:13]} Bd7 {[%emt 0:00:43]} 30. Qc1 {[%emt 0:02:09]} Bb5 {[%emt 0:00:40]} 31. Ne3 {[%emt 0:01:18]} Bd7 {[%emt 0:00:33]} 32. Ra2 {[%emt 0:01:37]} Bxe3 {[%emt 0:01:19]} 33. Qxe3 {[%emt 0:00:05]} Ra5 {[%emt 0:00:08]} 34. h3 {[%emt 0:01:58]} Rab5 {[%emt 0:00:21]} 35. Rd2 {[%emt 0:00:41]} Qc5 {[%emt 0:00:53]} 36. Qd3 {[%emt 0:02:22]} R5b6 {[%emt 0:00:15]} 37. Qf1 {[%emt 0:01:20]} a3 {[%emt 0:00:34]} 38. b3 {[%emt 0:04:47]} Qxc3 {[%emt 0:00:24]} 39. Rdc2 {[%emt 0:00:02]} Qb4 {[%emt 0:01:22]} 40. Rc7 {[%emt 0:00:00]} Be8 {[%emt 0:00:00]} 41. Ra7 {[%emt 0:02:04]} Rc8 {[%emt 0:05:16]} 42. f4 {[%emt 0:01:42]} exf4 {[%emt 0:10:29]} 43. Qxf4 {[%emt 0:00:30]} Qc3 {[%emt 0:04:53]} 44. Kh2 {[%emt 0:03:37]} Rc7 {[%emt 0:00:37]} 45. R2xa3 {[%emt 0:02:01]} Qc5 {[%emt 0:06:47]} 46. Ra2 {[%emt 0:02:43]} Rb8 {[%emt 0:01:53]} 47. R7a5 {[%emt 0:00:18]} Qb4 {[%emt 0:00:34]} 48. Ra6 {[%emt 0:01:24]} Rd8 {[%emt 0:02:35]} 49. Rf2 {[%emt 0:00:28]} Kg8 {[%emt 0:01:33]} 50. Qf6 {[%emt 0:01:10]} Rcd7 {[%emt 0:00:06]} 51. Bc6 {[%emt 0:01:28]} 1-0

[Event "75th ARM-ch Women 2020"]
[Site "Yerevan"]
[Date "2020.01.15"]
[Round "4.5"]
[White "Ghukasyan, Siranush"]
[Black "Khachatryan, Veronika"]
[Result "1-0"]
[ECO "B31"]
[WhiteElo "2246"]
[BlackElo "1905"]
[Annotator "ChessBase"]
[PlyCount "65"]
[EventDate "2020.01.12"]
[EventType "tourn"]
[EventCountry "ARM"]
[SourceTitle "playchess.com"]
[Source "ChessBase"]
[SourceQuality "1"]
[TimeControl "40/5400+30:1800+30"]

1. e4 {[%emt 0:00:00]} c5 {[%emt 0:00:00]} 2. Nf3 {[%emt 0:00:00]} Nc6 {[%emt 0:00:00]} 3. Bb5 {[%emt 0:00:00]} g6 {[%emt 0:00:00]} 4. Bxc6 {[%emt 0:00:00]} dxc6 {[%emt 0:00:00]} 5. d3 {[%emt 0:00:00]} Bg7 {[%emt 0:00:00]} 6. h3 {[%emt 0:00:02]} Nf6 {[%emt 0:00:00]} 7. Nc3 {[%emt 0:00:10]} Nd7 {[%emt 0:00:05]} 8. Be3 {[%emt 0:00:07]} e5 {[%emt 0:00:09]} 9. Qd2 {[%emt 0:00:06]} h6 {[%emt 0:00:37]} 10. O-O {[%emt 0:00:47]} Qe7 {[%emt 0:00:13]} 11. Nh2 {[%emt 0:00:26]} Nf8 {[%emt 0:00:29]} 12. f4 {[%emt 0:00:12]} exf4 {[%emt 0:00:56]} 13. Bxf4 {[%emt 0:00:05]} Ne6 {[%emt 0:00:53]} 14. Bg3 {[%emt 0:00:15]} Nd4 {[%emt 0:01:46]} 15. Rae1 {[%emt 0:01:12]} O-O {[%emt 0:09:43]} 16. e5 {[%emt 0:04:42]} Bf5 {[%emt 0:00:58]} 17. Ne4 {[%emt 0:02:53]} Bxe4 {[%emt 0:18:42]} 18. Rxe4 {[%emt 0:00:13]} h5 {[%emt 0:01:55]} 19. Bh4 {[%emt 0:06:48]} Qd7 {[%emt 0:11:20]} 20. Bf6 {[%emt 0:06:35]} Rae8 {[%emt 0:02:44]} 21. g4 {[%emt 0:04:59]} h4 {[%emt 0:21:46]} 22. c3 {[%emt 0:03:36]} Nb5 {[%emt 0:00:52]} 23. Nf3 {[%emt 0:04:14]} Nc7 {[%emt 0:16:14]} 24. Nxh4 {[%emt 0:02:28]} Re6 {[%emt 0:02:04]} 25. Rf3 {[%emt 0:29:20]} Ne8 {[%emt 0:04:08]} 26. g5 {[%emt 0:01:32]} Qd5 {[%emt 0:02:35]} 27. c4 {[%emt 0:01:19]} Qd7 {[%emt 0:00:04]} 28. Ng2 {[%emt 0:00:25]} Nc7 {[%emt 0:01:42]} 29. Qf2 {[%emt 0:00:54]} b6 {[%emt 0:02:01]} 30. Qh4 {[%emt 0:00:20]} Rfe8 {[%emt 0:00:20]} 31. Bxg7 {[%emt 0:01:42]} Kxg7 {[%emt 0:00:02]} 32. Qh6+ {[%emt 0:00:10]} Kg8 {[%emt 0:00:05]} 33. Rh4 {[%emt 0:00:15]} 1-0

[Event "75th ARM-ch Women 2020"]
[Site "Yerevan"]
[Date "2020.01.16"]
[Round "5.2"]
[White "Kursova, Maria"]
[Black "Ghukasyan, Siranush"]
[Result "1-0"]
[ECO "D10"]
[WhiteElo "2241"]
[BlackElo "2246"]
[Annotator "RC"]
[PlyCount "67"]
[EventDate "2020.01.12"]
[EventType "tourn"]
[EventCountry "ARM"]
[SourceTitle "playchess.com"]
[Source "ChessBase"]
[SourceQuality "1"]
[TimeControl "40/5400+30:1800+30"]

1. d4 {[%emt 0:00:00]} d5 {[%emt 0:00:00]} 2. c4 {[%emt 0:00:00]} c6 {[%emt 0:00:00]} 3. Nc3 {[%emt 0:00:00]} Nf6 {[%emt 0:00:00]} 4. cxd5 {[%emt 0:00:05]} cxd5 {[%emt 0:00:00]} 5. Bf4 {[%emt 0:00:08]} Nc6 {[%emt 0:00:17]} 6. Rc1 {[%emt 0:00:18]} Bf5 {[%emt 0:05:47]} 7. e3 {[%emt 0:00:39]} e6 {[%emt 0:01:58]} 8. Qb3 {[%emt 0:09:50]} Bb4 {[%emt 0:13:05]} 9. a3 {[%emt 0:03:27]} Bxc3+ {[%emt 0:01:50]} 10. Rxc3 {[%emt 0:00:12]} O-O {[%emt 0:09:58]} 11. Qxb7 {[%emt 0:08:15]} Na5 {[%emt 0:00:11]} 12. Qa6 {[%emt 0:04:44]} Rc8 {[%emt 0:05:26]} 13. f3 {[%emt 0:41:28]} Rxc3 {[%emt 0:10:23]} 14. bxc3 {[%emt 0:00:08]} Nc4 {[%emt 0:05:49]} 15. Bxc4 {[%emt 0:04:46]} dxc4 {[%emt 0:00:04]} 16. e4 {[%emt 0:00:55]} Nh5 {[%emt 0:03:33]} 17. Bd6 {[%emt 0:05:21]} Qg5 {[%emt 0:07:56]} 18. Ne2 {[%emt 0:04:56]} Qxg2 {[%emt 0:07:33]} 19. Rg1 {[%emt 0:00:30]} Qxf3 {[%emt 0:00:05]} 20. exf5 {[%emt 0:00:07]} Qe3 {[%emt 0:02:33]} 21. f6 {[%emt 0:04:21]} Re8 {[%emt 0:06:36]} 22. Qc6 {[%emt 0:01:47]} Rd8 {[%emt 0:02:10]} 23. fxg7 {[%emt 0:04:08]} Nf6 {[%emt 0:02:43]} 24. Rg3 {[%emt 0:00:17]} Qe4 {[%emt 0:01:12]} 25. Qxe4 {[%emt 0:00:53]} Nxe4 {[%emt 0:00:06]} 26. Bc7 {[%emt 0:00:39]} Rd7 {[%emt 0:00:41]} 27. Re3 {[%emt 0:00:13]} f5 {[%emt 0:00:05]} 28. Be5 {[%emt 0:00:17]} Rb7 {[%emt 0:00:11]} 29. Rxe4 {[%emt 0:04:39]} fxe4 {[%emt 0:00:06]} 30. Ng3 {[%emt 0:00:26]} Rb3 {[%emt 0:00:39]} 31. Nxe4 {[%emt 0:00:05]} Rxa3 {[%emt 0:00:19]} 32. Nd6 {[%emt 0:01:24]} Rb3 {[%emt 0:00:16]} 33. Nc8 {[%emt 0:00:28]} Rb7 {[%emt 0:00:06]} 34. Bf6 {[%emt 0:00:18]} 1-0

[Event "75th ARM-ch Women 2020"]
[Site "Yerevan"]
[Date "2020.01.16"]
[Round "5.5"]
[White "Khachatryan, Veronika"]
[Black "Hakobyan, Astghik"]
[Result "0-1"]
[ECO "A36"]
[WhiteElo "1905"]
[BlackElo "1917"]
[Annotator "NA RC"]
[PlyCount "108"]
[EventDate "2020.01.12"]
[EventType "tourn"]
[EventCountry "ARM"]
[SourceTitle "playchess.com"]
[Source "ChessBase"]
[SourceQuality "1"]
[TimeControl "40/5400+30:1800+30"]

1. c4 {[%emt 0:00:00]} Nf6 {[%emt 0:00:02]} 2. Nc3 {[%emt 0:00:00]} c5 {[%emt 0:01:44]} 3. g3 {[%emt 0:11:41]} e6 {[%emt 0:00:56]} 4. Bg2 {[%emt 0:05:11]} Be7 {[%emt 0:00:57]} 5. e4 {[%emt 0:01:56]} d6 {[%emt 0:00:20]} 6. Nge2 {[%emt 0:00:09]} O-O {[%emt 0:01:05]} 7. O-O {[%emt 0:00:06]} a6 {[%emt 0:03:11]} 8. d3 {[%emt 0:05:11]} Nc6 {[%emt 0:02:09]} 9. f4 {[%emt 0:00:37]} Qc7 {[%emt 0:02:02]} 10. h3 {[%emt 0:13:39]} Rb8 {[%emt 0:04:17]} 11. a4 {[%emt 0:00:13]} Rd8 {[%emt 0:04:44]} 12. g4 {[%emt 0:02:32]} Nb4 {[%emt 0:09:42]} (12... h6 $11) 13. g5 {[%emt 0:08:34]} Nd7 {[%emt 0:04:40]} 14. Ng3 {[%emt 0:08:54]} Bf8 {[%emt 0:03:12]} 15. Nh5 $11 {[%emt 0:08:56]} d5 {[%emt 0:08:34]} 16. exd5 {[%emt 0:06:07]} exd5 {[%emt 0:00:02]} 17. Nxd5 {[%emt 0:00:11]} Nxd5 {[%emt 0:00:12]} 18. Bxd5 {[%emt 0:00:12]} Nb6 {[%emt 0:00:23]} 19. Bg2 {[%emt 0:08:46]} Bf5 {[%emt 0:01:36]} 20. Rf3 {[%emt 0:01:01]} Qd6 {[%emt 0:17:13]} 21. Bf1 {[%emt 0:02:06]} Nxc4 {[%emt 0:00:48]} 22. Qc2 {[%emt 0:00:28]} Na5 {[%emt 0:02:08]} 23. Ng3 {[%emt 0:02:38]} Qd7 {[%emt 0:05:08]} 24. Nxf5 {[%emt 0:06:22]} Qxf5 {[%emt 0:00:02]} 25. Rg3 {[%emt 0:04:01]} Nc6 {[%emt 0:01:28]} 26. Bd2 {[%emt 0:02:08]} Bd6 {[%emt 0:02:06]} 27. Bg2 {[%emt 0:00:56]} Nd4 {[%emt 0:01:18]} 28. Qd1 {[%emt 0:00:13]} Bxf4 {[%emt 0:00:57]} 29. Rf3 {[%emt 0:00:40]} Qe5 {[%emt 0:04:38]} 30. Bxf4 {[%emt 0:00:52]} Ne2+ {[%emt 0:00:25]} 31. Qxe2 {[%emt 0:00:27]} Qxe2 {[%emt 0:00:02]} 32. Bxb8 {[%emt 0:00:08]} Rxb8 {[%emt 0:00:29]} 33. Raf1 {[%emt 0:00:14]} Rf8 {[%emt 0:02:28]} 34. R1f2 {[%emt 0:00:57]} Qe1+ {[%emt 0:00:27]} 35. Kh2 {[%emt 0:00:49]} Qe5+ {[%emt 0:00:09]} 36. Rf4 {[%emt 0:00:20]} f6 {[%emt 0:00:32]} 37. Kh1 {[%emt 0:00:29]} Qxg5 {[%emt 0:00:20]} 38. Bxb7 {[%emt 0:00:18]} a5 {[%emt 0:02:16]} 39. Rf5 {[%emt 0:00:49]} Qc1+ {[%emt 0:01:55]} 40. Kg2 {[%emt 0:00:00]} Rb8 {[%emt 0:00:00]} 41. Bd5+ {[%emt 0:00:40]} Kh8 {[%emt 0:02:43]} 42. b3 {[%emt 0:00:38]} Re8 {[%emt 0:01:26]} 43. Bc4 {[%emt 0:14:20]} Qe3 {[%emt 0:08:12]} 44. Rd5 {[%emt 0:00:36]} h6 {[%emt 0:02:38]} 45. Rf3 {[%emt 0:02:18]} Qd2+ {[%emt 0:01:12]} 46. Rf2 {[%emt 0:01:39]} Re2 {[%emt 0:01:51]} 47. Rxe2 {[%emt 0:00:05]} Qxe2+ {[%emt 0:00:01]} 48. Kg3 {[%emt 0:00:07]} Qe3+ {[%emt 0:00:08]} 49. Kg4 {[%emt 0:02:17]} Kh7 {[%emt 0:01:41]} 50. h4 {[%emt 0:04:13]} g6 {[%emt 0:01:33]} 51. Rd7+ {[%emt 0:00:31]} Kh8 {[%emt 0:00:03]} 52. Rd8+ {[%emt 0:00:10]} Kg7 {[%emt 0:00:01]} 53. Rd7+ {[%emt 0:00:19]} Kf8 {[%emt 0:00:04]} 54. Rf7+ {[%emt 0:00:27]} Ke8 {[%emt 0:00:07]} 0-1

[Event "75th ARM-ch Women 2020"]
[Site "Yerevan"]
[Date "2020.01.17"]
[Round "6.2"]
[White "Khachatryan, Anna"]
[Black "Khachatryan, Veronika"]
[Result "1-0"]
[ECO "B03"]
[WhiteElo "2051"]
[BlackElo "1905"]
[Annotator "NA RC"]
[PlyCount "69"]
[EventDate "2020.01.12"]
[EventType "tourn"]
[EventCountry "ARM"]
[SourceTitle "playchess.com"]
[Source "ChessBase"]
[SourceQuality "1"]
[TimeControl "40/5400+30:1800+30"]

1. e4 {[%emt 0:00:00]} Nf6 {[%emt 0:00:09]} 2. e5 {[%emt 0:00:00]} Nd5 {[%emt 0:00:05]} 3. c4 {[%emt 0:00:00]} Nb6 {[%emt 0:00:05]} 4. d4 {[%emt 0:00:00]} d6 {[%emt 0:00:10]} 5. exd6 {[%emt 0:00:00]} cxd6 {[%emt 0:00:15]} 6. Nc3 {[%emt 0:00:00]} g6 {[%emt 0:00:13]} 7. Be3 {[%emt 0:00:00]} Bg7 {[%emt 0:00:32]} 8. Rc1 {[%emt 0:00:00]} O-O {[%emt 0:01:03]} 9. b3 {[%emt 0:00:00]} Nc6 {[%emt 0:02:59]} 10. d5 {[%emt 0:01:54]} Ne5 {[%emt 0:03:57]} 11. Be2 {[%emt 0:01:49]} f5 {[%emt 0:03:57]} 12. f4 {[%emt 0:02:23]} Nf7 {[%emt 0:03:04] B03: Alekhine's Defence: Four Pawns Attack} ({Black should try} 12... Ng4 13. Bxg4 (13. Bd4 e5 14. dxe6 Bxe6 15. Bxg4 Bxd4 16. Qxd4 fxg4 17. Nge2 Qh4+ 18. Ng3 Qf6 19. Qxf6 Rxf6 20. O-O d5 {1-0 (40) Azarov,S (2582)-Bernadskiy,V (2529) Lvov 2017}) 13... fxg4) 13. Nf3 {[%emt 0:00:38]} e5 {[%emt 0:04:05]} 14. dxe6 {[%emt 0:03:08]} Bxe6 {[%emt 0:00:06]} 15. O-O {[%emt 0:00:59]} Re8 {[%emt 0:03:28]} 16. Bd4 {[%emt 0:04:04]} Rc8 {[%emt 0:10:40]} 17. Bxg7 {[%emt 0:06:18]} Kxg7 {[%emt 0:00:02]} 18. Qd4+ $146 {[%emt 0:00:18]} ({Predecessor:} 18. Nd4 Kg8 19. Bf3 Qd7 20. Re1 {1-0 (30) Minko,D (2091)-Craciun,A (1889) Mamaia 2017}) 18... Qf6 {[%emt 0:05:58]} 19. Rfd1 {[%emt 0:03:51]} Qxd4+ {[%emt 0:05:17]} 20. Nxd4 {[%emt 0:00:40]} a6 {[%emt 0:02:33]} 21. Bf3 {[%emt 0:01:37]} Rc7 {[%emt 0:01:42]} 22. a4 {[%emt 0:07:03]} Kf6 {[%emt 0:05:38]} 23. a5 {[%emt 0:02:30]} Nc8 {[%emt 0:00:57]} 24. Re1 {[%emt 0:02:35]} Rce7 {[%emt 0:09:47]} 25. Nxe6 {[%emt 0:01:47]} Rxe6 {[%emt 0:00:08]} 26. Rxe6+ {[%emt 0:00:15]} Rxe6 {[%emt 0:00:42]} 27. Bxb7 {[%emt 0:00:14]} Ne7 {[%emt 0:01:01]} 28. Bxa6 {[%emt 0:00:13]} Nc6 {[%emt 0:01:37]} 29. Nd5+ {[%emt 0:00:13]} Kg7 {[%emt 0:00:09]} 30. b4 {[%emt 0:00:50]} Nd4 {[%emt 0:01:00]} 31. Rd1 {[%emt 0:00:28]} Nb3 {[%emt 0:01:20]} 32. Bb5 {[%emt 0:00:34]} Re2 {[%emt 0:01:07]} 33. a6 {[%emt 0:01:26]} Ra2 {[%emt 0:00:24]} 34. Nc3 {[%emt 0:00:09]} Ra3 {[%emt 0:00:19]} 35. Na4 $18 {[%emt 0:00:17]} 1-0

[Event "75th ARM-ch Women 2020"]
[Site "Yerevan"]
[Date "2020.01.18"]
[Round "7.1"]
[White "Khachatryan, Veronika"]
[Black "Ambarjyan, Tereza"]
[Result "*"]
[ECO "C51"]
[WhiteElo "1905"]
[BlackElo "1514"]
[Annotator "NA"]
[PlyCount "41"]
[EventDate "2020.01.12"]
[EventType "tourn"]
[EventCountry "ARM"]
[SourceTitle "playchess.com"]
[Source "ChessBase"]
[SourceQuality "1"]
[TimeControl "40/5400+30:1800+30"]

1. e4 {[%emt 0:00:00]} e5 {[%emt 0:03:32]} 2. Nf3 {[%emt 0:00:00]} Nc6 {[%emt 0:00:08]} 3. Bc4 {[%emt 0:00:00]} Bc5 {[%emt 0:00:04]} 4. b4 {[%emt 0:00:00]} Bb6 {[%emt 0:00:18]} 5. a4 {[%emt 0:00:24]} a6 {[%emt 0:00:36]} 6. O-O {[%emt 0:00:21]} Nf6 {[%emt 0:00:16]} 7. Nc3 {[%emt 0:00:59]} d6 {[%emt 0:00:52]} 8. Nd5 {[%emt 0:03:35]} Nxd5 {[%emt 0:16:06]} 9. exd5 {[%emt 0:00:08]} Nd4 {[%emt 0:09:14]} 10. Nxd4 {[%emt 0:02:41]} Bxd4 {[%emt 0:00:05]} 11. c3 {[%emt 0:00:04]} Ba7 {[%emt 0:00:22]} 12. d4 {[%emt 0:00:08]} O-O {[%emt 0:00:55]} 13. Re1 {[%emt 0:02:28]} Re8 {[%emt 0:02:12]} 14. Ra2 {[%emt 0:01:07]} Qh4 {[%emt 0:03:23]} 15. Be3 {[%emt 0:12:21]} Bd7 {[%emt 0:04:51]} 16. Rae2 {[%emt 0:08:41]} e4 {[%emt 0:09:03]} 17. Ra2 {[%emt 0:05:13]} f5 {[%emt 0:01:39]} 18. Qd2 {[%emt 0:01:50]} Rf8 {[%emt 0:01:11]} 19. Bf4 {[%emt 0:03:11]} h6 {[%emt 0:02:28]} 20. g3 {[%emt 0:00:05]} Qf6 {[%emt 0:02:02]} 21. h4 {[%emt 0:00:12]} *

[Event "75th ARM-ch Women 2020"]
[Site "Yerevan"]
[Date "2020.01.18"]
[Round "7.2"]
[White "Kursova, Maria"]
[Black "Khachatryan, Anna"]
[Result "1-0"]
[ECO "E73"]
[WhiteElo "2241"]
[BlackElo "2051"]
[Annotator "ChessBase"]
[PlyCount "67"]
[EventDate "2020.01.12"]
[EventType "tourn"]
[EventCountry "ARM"]
[SourceTitle "playchess.com"]
[Source "ChessBase"]
[SourceQuality "1"]
[TimeControl "40/5400+30:1800+30"]

1. d4 Nf6 2. c4 {[%emt 0:00:00]} g6 {[%emt 0:00:00]} 3. Nc3 {[%emt 0:00:10]} Bg7 {[%emt 0:00:09]} 4. e4 {[%emt 0:00:22]} d6 {[%emt 0:00:09]} 5. Be2 {[%emt 0:00:15]} O-O {[%emt 0:00:22]} 6. Be3 {[%emt 0:00:22]} e5 {[%emt 0:02:59]} 7. d5 {[%emt 0:00:57]} a5 {[%emt 0:09:30]} 8. g4 {[%emt 0:00:58]} Na6 {[%emt 0:01:04]} 9. h4 {[%emt 0:02:02]} Nc5 {[%emt 0:02:31]} 10. f3 {[%emt 0:00:41]} c6 {[%emt 0:04:41]} 11. h5 {[%emt 0:17:07]} cxd5 {[%emt 0:01:59]} 12. cxd5 {[%emt 0:02:11]} Bd7 {[%emt 0:12:31]} 13. Qd2 {[%emt 0:29:53]} Rb8 {[%emt 0:07:00]} 14. Bb5 {[%emt 0:11:36]} a4 {[%emt 0:37:37]} 15. Nge2 {[%emt 0:15:37]} Qe8 {[%emt 0:03:45]} 16. Bxd7 {[%emt 0:00:53]} Qxd7 {[%emt 0:00:02]} 17. Nc1 {[%emt 0:05:41]} Rfc8 {[%emt 0:02:20]} 18. Nd3 {[%emt 0:00:47]} Nxd3+ {[%emt 0:01:02]} 19. Qxd3 {[%emt 0:00:03]} b5 {[%emt 0:00:08]} 20. Kf2 {[%emt 0:01:44]} Ne8 {[%emt 0:03:44]} 21. b4 {[%emt 0:05:13]} Bf6 {[%emt 0:04:35]} 22. a3 {[%emt 0:02:10]} g5 {[%emt 0:02:30]} 23. Rac1 {[%emt 0:00:34]} Bd8 {[%emt 0:01:25]} 24. Ne2 {[%emt 0:01:17]} f6 {[%emt 0:01:16]} 25. Rxc8 {[%emt 0:00:54]} Rxc8 {[%emt 0:00:01]} 26. Rc1 {[%emt 0:00:18]} Rxc1 {[%emt 0:00:24]} 27. Nxc1 {[%emt 0:00:02]} Qb7 {[%emt 0:00:24]} 28. Ke2 {[%emt 0:00:44]} Kf7 {[%emt 0:01:09]} 29. Na2 {[%emt 0:00:08]} Nc7 {[%emt 0:00:27]} 30. Nc3 {[%emt 0:00:36]} Ke8 {[%emt 0:00:23]} 31. Bf2 {[%emt 0:00:14]} Kd7 {[%emt 0:00:35]} 32. Qe3 {[%emt 0:00:17]} Kc8 {[%emt 0:00:39]} 33. Qb6 {[%emt 0:00:34]} Kb8 {[%emt 0:00:33]} 34. Qxd6 {[%emt 0:00:13]} 1-0

[Event "75th ARM-ch Women 2020"]
[Site "Yerevan"]
[Date "2020.01.18"]
[Round "7.2"]
[White "Gaboyan, Susanna"]
[Black "Avetisyan, Mariam"]
[Result "*"]
[WhiteElo "2205"]
[BlackElo "2163"]
[Annotator "ChessBase"]
[PlyCount "26"]
[EventDate "2020.01.12"]
[EventType "tourn"]
[EventCountry "ARM"]
[SourceTitle "playchess.com"]
[Source "ChessBase"]
[SourceQuality "1"]
[TimeControl "40/5400+30:1800+30"]

1. d4 Nf6 2. c4 {[%emt 0:00:00]} g6 {[%emt 0:00:00]} 3. Nc3 {[%emt 0:00:10]} Bg7 {[%emt 0:00:09]} 4. e4 {[%emt 0:00:22]} d6 {[%emt 0:00:09]} 5. Be2 {[%emt 0:00:15]} O-O {[%emt 0:00:22]} 6. Be3 {[%emt 0:00:22]} e5 {[%emt 0:02:59]} 7. d5 {[%emt 0:00:57]} a5 {[%emt 0:09:30]} 8. g4 {[%emt 0:00:58]} Na6 {[%emt 0:01:04]} 9. h4 {[%emt 0:02:02]} Nc5 {[%emt 0:02:31]} 10. f3 {[%emt 0:00:41]} c6 {[%emt 0:04:41]} 11. h5 {[%emt 0:17:07]} cxd5 {[%emt 0:01:59]} 12. cxd5 {[%emt 0:02:11]} Bd7 {[%emt 0:12:31]} 13. Qd2 {[%emt 0:29:53]} Rb8 {[%emt 0:07:00]} *